fUST/lending_fUST_20250704
["ID","MTS","AMOUNT","RATE_DAILY","PERIOD"]
[369421091,1751569846261,-710.66,0.00018356,2]
[369421093,1751569846274,-1777.77,0.00018356,2]
[369421095,1751569846283,-2254.77098407,0.00018383,2]
[369421097,1751569846296,-1213.96,0.000184,2]
[369421099,1751569846305,-1000.0,0.00018416,2]
[369421101,1751569846315,-906.0,0.00018484,2]
[369421103,1751569846325,-250.0,0.00018522,2]
[369421105,1751569846334,-2013.56021896,0.0001853,2]
[369421107,1751569846345,-250.0,0.00018563,2]
[369421109,1751569846354,-500.0,0.0001857,2]
[369421111,1751569846363,-250.0,0.00018603,2]
[369421113,1751569846373,-2254.77098407,0.00018624,2]
[369421115,1751569846383,-151.0,0.0001863,2]
[369421117,1751569846392,-151.0,0.0001863,2]
[369421119,1751569846402,-151.0,0.0001863,2]
[369421121,1751569846411,-151.0,0.0001863,2]
[369421123,1751569846420,-151.0,0.0001863,2]
[369421125,1751569846429,-518.07,0.0001863,2]
[369421127,1751569846441,-460.0,0.0001863,2]
[369421129,1751569846450,-460.0,0.0001863,2]
[369421131,1751569846460,-460.0,0.0001863,2]
[369421133,1751569846469,-460.0,0.0001863,2]
[369421135,1751569846479,-1278.93,0.0001863,2]
[369421137,1751569846488,-460.0,0.0001863,2]
[369421139,1751569846498,-460.0,0.0001863,2]
[369421141,1751569846507,-1251.71,0.0001863,2]
[369421143,1751569846516,-915.56,0.0001863,2]
[369421145,1751569846525,-1726.39,0.0001863,2]
[369421147,1751569846535,-1165.74,0.0001863,2]
[369421149,1751569846544,-460.0,0.0001863,2]
[369421151,1751569846553,-1592.67,0.0001863,2]
[369421153,1751569846562,-701.7,0.0001863,2]
[369421155,1751569846572,-813.85,0.0001863,2]
[369421157,1751569846581,-494.87,0.0001863,2]
[369421159,1751569846591,-731.22,0.0001863,2]
[369421161,1751569846600,-460.0,0.0001863,2]
[369421163,1751569846609,-710.66,0.0001863,2]
[369421165,1751569846619,-1777.77,0.0001863,2]
[369421167,1751569846628,-906.0,0.00018634,2]
[369421169,1751569846637,-250.0,0.00018644,2]
[369421171,1751569846647,-168.0,0.00018652,2]
[369421173,1751569846656,-250.0,0.00018685,2]
[369421175,1751569846666,-1055.75715405,0.0001869,2]
[369421177,1751569846676,-250.0,0.00018725,2]
[369421179,1751569846685,-250.0,0.00018766,2]
[369421181,1751569846694,-325.646463,0.00018794,2]
[369421183,1751569846704,-250.0,0.00018806,2]
[369421185,1751569846713,-250.0,0.00018847,2]
[369421187,1751569846723,-151.0,0.00018861,2]
[369421189,1751569846732,-2254.77098407,0.00018866,2]
[369421191,1751569846741,-250.0,0.00018888,2]
[369421193,1751569846751,-19031.55210435,0.000189,2]
[369421195,1751569846760,-5617.83862,0.000189,2]
[369421197,1751569846770,-153.200929,0.00018904,2]
[369421199,1751569846779,-151.0,0.00018904,2]
[369421201,1751569846787,-151.0,0.00018904,2]
[369421202,1751569846796,-151.0,0.00018904,2]
[369421204,1751569846806,-151.0,0.00018904,2]
[369421206,1751569846816,-151.0,0.00018904,2]
[369421208,1751569846825,-518.07,0.00018904,2]
[369421210,1751569846834,-460.0,0.00018904,2]
[369421212,1751569846844,-460.0,0.00018904,2]
[369421215,1751569846854,-151.0,0.00018904,2]
[369421216,1751569846863,-151.0,0.00018904,2]
[369421218,1751569846872,-460.0,0.00018904,2]
[369421220,1751569846881,-368.9415471,0.00018904,2]
[369421222,1751569846890,-1278.93,0.00018904,2]
[369421224,1751569846899,-151.0,0.00018904,2]
[369421226,1751569846910,-460.0,0.00018904,2]
[369421228,1751569846919,-460.0,0.00018904,2]
[369421231,1751569846928,-1251.71,0.00018904,2]
[369421232,1751569846938,-915.56,0.00018904,2]
[369421234,1751569846947,-1726.39,0.00018904,2]
[369421237,1751569846956,-1165.74,0.00018904,2]
[369421239,1751569846966,-460.0,0.00018904,2]
[369421241,1751569846975,-1592.67,0.00018904,2]
[369421243,1751569846984,-701.7,0.00018904,2]
[369421244,1751569846993,-813.85,0.00018904,2]
[369421246,1751569847003,-494.87,0.00018904,2]
[369421248,1751569847012,-731.22,0.00018904,2]
[369421250,1751569847021,-460.0,0.00018904,2]
[369421252,1751569847032,-710.66,0.00018904,2]
[369421254,1751569847043,-1777.77,0.00018904,2]
[369421256,1751569847052,-215.0738,0.00018905,2]
[369421258,1751569847062,-250.0,0.00018928,2]
[369421260,1751569847071,-151.0,0.0001896,2]
[369421262,1751569847080,-1500.0,0.00018964,2]
[369421264,1751569847089,-906.0,0.00018966,2]
[369421266,1751569847098,-250.0,0.00018969,2]
[369421268,1751569847109,-2663.0,0.00018995,2]
[369421270,1751569847118,-557.05,0.00019,2]
[369421272,1751569847128,-177.915,0.00019,2]
[369421274,1751569847138,-250.0,0.0001901,2]
[369421276,1751569847147,-151.0,0.00019032,2]
[369421278,1751569847156,-151.0,0.00019032,2]
[369421280,1751569847165,-151.0,0.00019032,2]
[369421282,1751569847174,-151.0,0.00019032,2]
[369421284,1751569847183,-151.0,0.00019032,2]
[369421286,1751569847192,-151.0,0.00019032,2]
[369421288,1751569847201,-151.0,0.00019032,2]
[369421290,1751569847211,-151.0,0.00019032,2]
[369421292,1751569847220,-250.484496,0.00019032,2]
[369421294,1751569847229,-250.0,0.0001905,2]
[369421296,1751569847239,-250.0,0.00019091,2]
[369421298,1751569847248,-151.0,0.000191,2]
[369421300,1751569847257,-2254.77098407,0.00019107,2]
[369421302,1751569847267,-151.0,0.00019107,2]
[369421304,1751569847276,-250.0,0.00019131,2]
[369421305,1751569847288,-250.0,0.00019172,2]
[369421308,1751569847297,-265.10983529,0.00019178,2]
[369421310,1751569847307,-46.01680483,0.00019178,2]
[369421335,1751569847558,-104.98319517,0.00019178,2]
[369421337,1751569847567,-151.0,0.00019178,2]
[369421339,1751569847577,-161.48382,0.00019178,2]
[369421341,1751569847587,-315.49053246,0.00019178,10]
[369421374,1751569847898,-1241.84,0.0001726,2]
[369421376,1751569847908,-1241.84,0.00017534,2]
[369421378,1751569847917,-1241.84,0.00017808,2]
[369421380,1751569847927,-282.24502474,0.00018082,2]
[369421382,1751569847943,-513.68227683,0.00018082,2]
[369421385,1751569847954,-445.91269843,0.00018082,2]
[369421387,1751569847963,-460.0,0.00018082,2]
[369421389,1751569847973,-1241.84,0.00018356,2]
[369421391,1751569847982,-460.0,0.00018356,2]
[369421393,1751569847992,-209.30088051,0.00019178,10]
[369421395,1751569848001,-518.07,0.00019178,2]
[369421397,1751569848010,-460.0,0.00019178,2]
[369421399,1751569848020,-460.0,0.00019178,2]
[369421401,1751569848029,-460.0,0.00019178,2]
[369421402,1751569848041,-1278.93,0.00019178,2]
[369421404,1751569848050,-847.79783075,0.00019178,10]
[369421406,1751569848060,-12575.98004106,0.00019178,10]
[369421408,1751569848070,-213.94585247,0.00019178,10]
[369421410,1751569848081,-460.0,0.00019178,2]
[369421412,1751569848092,-460.0,0.00019178,2]
[369421414,1751569848102,-1251.71,0.00019178,2]
[369421416,1751569848114,-915.56,0.00019178,2]
[369421418,1751569848129,-1726.39,0.00019178,2]
[369421421,1751569848139,-1165.74,0.00019178,2]
[369421423,1751569848150,-460.0,0.00019178,2]
[369421425,1751569848160,-1592.67,0.00019178,2]
[369421426,1751569848170,-701.7,0.00019178,2]
[369421428,1751569848179,-813.85,0.00019178,2]
[369421430,1751569848188,-508.591902,0.00019178,2]
[369421432,1751569848197,-494.87,0.00019178,2]
[369421434,1751569848207,-508.591902,0.00019178,2]
[369421436,1751569848216,-731.22,0.00019178,2]
[369421438,1751569848226,-460.0,0.00019178,2]
[369421440,1751569848235,-710.66,0.00019178,2]
[369421441,1751569848243,-1777.77,0.00019178,2]
[369421443,1751569848253,-788.406474,0.00019178,2]
[369421445,1751569848264,-666.0,0.00019178,2]
[369421448,1751569848274,-250.0,0.00019213,2]
[369421450,1751569848284,-250.0,0.00019253,2]
[369421451,1751569848294,-2663.0,0.00019262,2]
[369421454,1751569848305,-177.41445,0.00019286,2]
[369421456,1751569848314,-161.648141,0.00019286,2]
[369421458,1751569848324,-250.0,0.00019294,2]
[369421460,1751569848334,-151.0,0.00019329,2]
[369421462,1751569848343,-249.781616,0.00019329,2]
[369421464,1751569848353,-151.0,0.00019329,2]
[369421466,1751569848362,-151.0,0.00019329,2]
[369421468,1751569848373,-151.0,0.00019329,2]
[369421470,1751569848382,-151.0,0.00019329,2]
[369421471,1751569848391,-151.0,0.00019329,2]
[369421473,1751569848400,-151.0,0.00019329,2]
[369421475,1751569848409,-151.0,0.00019329,2]
[369421477,1751569848418,-151.0,0.00019329,2]
[369421479,1751569848427,-151.0,0.00019329,2]
[369421481,1751569848437,-151.0,0.00019329,2]
[369421483,1751569848446,-151.0,0.00019329,2]
[369421485,1751569848456,-162.00273,0.00019329,2]
[369421487,1751569848465,-151.0,0.00019329,2]
[369421489,1751569848475,-151.0,0.00019329,2]
[369421491,1751569848484,-151.0,0.00019329,2]
[369421493,1751569848494,-151.0,0.00019329,2]
[369421495,1751569848503,-151.0,0.00019329,2]
[369421497,1751569848513,-151.0,0.00019329,2]
[369421499,1751569848522,-151.0,0.00019329,2]
[369421501,1751569848531,-508.591902,0.00019329,2]
[369421503,1751569848541,-508.591902,0.00019329,2]
[369421505,1751569848550,-2321.26048053,0.00019329,2]
[369421507,1751569848560,-1230.41548807,0.00019329,2]
[369421508,1751569848569,-37201.0581796,0.00019329,2]
[369421511,1751569848587,-460.0,0.00016438,2]
[369421513,1751569848597,-19852.48788017,0.00019329,2]
[369425048,1751569985190,184.173757,0.00013699,2]
[369425051,1751570825138,-300.0,0.00016437,2]
[369425052,1751570825159,-127.41425803,0.00016438,2]
[369425053,1751570833133,-390.8410732,0.00016438,2]
[369425054,1751570833154,-460.0,0.00016438,2]
[369425055,1751570833177,-80.05799616,0.00016438,2]
[369425110,1751571038518,-300.0,0.00016437,2]
[369425112,1751571038528,-460.0,0.00016438,2]
[369425114,1751571038538,-859.36,0.00016438,2]
[369425116,1751571038548,-460.0,0.00016438,2]
[369425118,1751571038558,-962.96,0.00016438,2]
[369425120,1751571038567,-460.0,0.00016438,2]
[369425122,1751571038576,-692.75,0.00016711,2]
[369425124,1751571038586,-827.89,0.00016711,2]
[369425126,1751571038595,-460.0,0.00016711,2]
[369425129,1751571038605,-678.01,0.00016711,2]
[369425131,1751571038614,-829.86,0.00016711,2]
[369425133,1751571038624,-495.93,0.00016711,2]
[369425135,1751571038634,-460.0,0.00016711,2]
[369425137,1751571038643,-460.0,0.00016711,2]
[369425139,1751571038653,-460.0,0.00016711,2]
[369425142,1751571038671,-935.13,0.00016711,2]
[369425144,1751571038684,-460.0,0.00016711,2]
[369425147,1751571038697,-460.0,0.00016711,2]
[369425149,1751571038710,-460.0,0.00016711,2]
[369425152,1751571038722,-460.0,0.00016711,2]
[369425154,1751571038735,-460.0,0.00016711,2]
[369425156,1751571038747,-460.0,0.00016711,2]
[369425158,1751571038758,-460.0,0.00016711,2]
[369425160,1751571038768,-460.0,0.00016712,2]
[369425163,1751571038779,-460.0,0.00016712,2]
[369425165,1751571038792,-859.36,0.00016712,2]
[369425167,1751571038803,-460.0,0.00016712,2]
[369425170,1751571038815,-962.96,0.00016712,2]
[369425172,1751571038827,-460.0,0.00016712,2]
[369425174,1751571038839,-692.75,0.00016985,2]
[369425176,1751571038850,-827.89,0.00016985,2]
[369425179,1751571038862,-460.0,0.00016985,2]
[369425181,1751571038873,-678.01,0.00016985,2]
[369425183,1751571038884,-829.86,0.00016985,2]
[369425186,1751571038897,-495.93,0.00016985,2]
[369425188,1751571038908,-460.0,0.00016985,2]
[369425191,1751571038924,-460.0,0.00016985,2]
[369425193,1751571038936,-460.0,0.00016985,2]
[369425195,1751571038949,-935.13,0.00016985,2]
[369425198,1751571038960,-460.0,0.00016985,2]
[369425200,1751571038971,-460.0,0.00016985,2]
[369425202,1751571038982,-460.0,0.00016985,2]
[369425204,1751571038993,-460.0,0.00016985,2]
[369425207,1751571039004,-460.0,0.00016985,2]
[369425209,1751571039020,-460.0,0.00016985,2]
[369425212,1751571039033,-460.0,0.00016985,2]
[369425214,1751571039046,-460.0,0.00016986,2]
[369425216,1751571039058,-460.0,0.00016986,2]
[369425219,1751571039070,-859.36,0.00016986,2]
[369425221,1751571039081,-460.0,0.00016986,2]
[369425223,1751571039094,-962.96,0.00016986,2]
[369425225,1751571039105,-460.0,0.00016986,2]
[369425228,1751571039117,-659.84822129,0.00017159,2]
[369425230,1751571039128,-692.75,0.00017259,2]
[369425232,1751571039139,-827.89,0.00017259,2]
[369425234,1751571039150,-460.0,0.00017259,2]
[369425236,1751571039159,-678.01,0.00017259,2]
[369425239,1751571039170,-829.86,0.00017259,2]
[369425241,1751571039181,-495.93,0.00017259,2]
[369425243,1751571039192,-460.0,0.00017259,2]
[369425245,1751571039202,-460.0,0.00017259,2]
[369425247,1751571039214,-460.0,0.00017259,2]
[369425250,1751571039225,-935.13,0.00017259,2]
[369425252,1751571039236,-460.0,0.00017259,2]
[369425254,1751571039248,-460.0,0.00017259,2]
[369425256,1751571039259,-460.0,0.00017259,2]
[369425259,1751571039272,-460.0,0.00017259,2]
[369425261,1751571039283,-460.0,0.00017259,2]
[369425263,1751571039294,-460.0,0.00017259,2]
[369425266,1751571039306,-460.0,0.00017259,2]
[369425268,1751571039317,-460.0,0.0001726,2]
[369425270,1751571039329,-460.0,0.0001726,2]
[369425272,1751571039342,-859.36,0.0001726,2]
[369425275,1751571039356,-460.0,0.0001726,2]
[369425277,1751571039368,-962.96,0.0001726,2]
[369425279,1751571039380,-460.0,0.0001726,2]
[369425282,1751571039390,-500.0,0.00017532,2]
[369425284,1751571039400,-500.0,0.00017532,2]
[369425286,1751571039410,-500.0,0.00017532,2]
[369425288,1751571039420,-539.64209114,0.00017532,2]
[369425290,1751571039429,-158.96813147,0.00017532,2]
[369425292,1751571039441,-692.75,0.00017533,2]
[369425294,1751571039454,-827.89,0.00017533,2]
[369425296,1751571039465,-460.0,0.00017533,2]
[369425298,1751571039476,-678.01,0.00017533,2]
[369425301,1751571039490,-829.86,0.00017533,2]
[369425303,1751571039500,-495.93,0.00017533,2]
[369425305,1751571039513,-460.0,0.00017533,2]
[369425307,1751571039523,-460.0,0.00017533,2]
[369425309,1751571039534,-460.0,0.00017533,2]
[369425312,1751571039545,-935.13,0.00017533,2]
[369425314,1751571039555,-460.0,0.00017533,2]
[369425316,1751571039566,-489.96532529,0.00017533,2]
[369425318,1751571039577,-460.0,0.00017533,2]
[369425320,1751571039588,-460.0,0.00017533,2]
[369425323,1751571039601,-460.0,0.00017533,2]
[369425325,1751571039612,-460.0,0.00017533,2]
[369425327,1751571039622,-460.0,0.00017533,2]
[369425329,1751571039632,-460.0,0.00017534,2]
[369425331,1751571039641,-460.0,0.00017534,2]
[369425333,1751571039651,-859.36,0.00017534,2]
[369425335,1751571039662,-460.0,0.00017534,2]
[369425337,1751571039672,-962.96,0.00017534,2]
[369425339,1751571039683,-460.0,0.00017534,2]
[369425342,1751571039693,-207.4,0.00017536,2]
[369425344,1751571039705,-213.94585247,0.00017778,2]
[369425346,1751571039715,-160.0,0.00017778,2]
[369425348,1751571039726,-215.07701991,0.00017778,2]
[369425350,1751571039736,-847.79783075,0.00017778,2]
[369425353,1751571039747,-160.0,0.00017778,2]
[369425355,1751571039762,-230.37558374,0.00017778,2]
[369425358,1751571039773,-160.0,0.00017778,2]
[369425360,1751571039783,-160.0,0.00017778,2]
[369425362,1751571039795,-837.389109,0.00017778,2]
[369425364,1751571039806,-7537.82775241,0.00017778,2]
[369425367,1751571039821,-5038.15228865,0.00017778,2]
[369425369,1751571039832,-160.0,0.00017778,2]
[369425371,1751571039844,-692.75,0.00017807,2]
[369425374,1751571039856,-827.89,0.00017807,2]
[369425376,1751571039867,-460.0,0.00017807,2]
[369425378,1751571039878,-678.01,0.00017807,2]
[369425380,1751571039889,-829.86,0.00017807,2]
[369425383,1751571039901,-495.93,0.00017807,2]
[369425385,1751571039912,-460.0,0.00017807,2]
[369425387,1751571039923,-460.0,0.00017807,2]
[369425389,1751571039934,-460.0,0.00017807,2]
[369425391,1751571039944,-935.13,0.00017807,2]
[369425393,1751571039955,-460.0,0.00017807,2]
[369425395,1751571039965,-460.0,0.00017807,2]
[369425398,1751571039976,-460.0,0.00017807,2]
[369425401,1751571039986,-460.0,0.00017807,2]
[369425403,1751571039997,-460.0,0.00017807,2]
[369425405,1751571040008,-460.0,0.00017807,2]
[369425407,1751571040019,-460.0,0.00017808,2]
[369425409,1751571040030,-509.5271069,0.00017808,2]
[369425411,1751571040041,-859.36,0.00017808,2]
[369425413,1751571040052,-460.0,0.00017808,2]
[369425416,1751571040063,-962.96,0.00017808,2]
[369425418,1751571040073,-460.0,0.00017808,2]
[369425420,1751571040084,-500.0,0.00017827,2]
[369425422,1751571040095,-500.0,0.00017827,2]
[369425424,1751571040105,-500.0,0.00017827,2]
[369425426,1751571040116,-500.0,0.00017827,2]
[369425429,1751571040126,-500.0,0.00017827,2]
[369425431,1751571040136,-500.0,0.00017827,2]
[369425434,1751571040147,-500.0,0.00017827,2]
[369425436,1751571040158,-500.0,0.00017827,2]
[369425438,1751571040170,-500.0,0.00017827,2]
[369425440,1751571040181,-500.0,0.00017827,2]
[369425443,1751571040192,-500.0,0.00017827,2]
[369425447,1751571040203,-500.0,0.00017827,2]
[369425450,1751571040214,-500.0,0.00017827,2]
[369425452,1751571040224,-500.0,0.00017827,2]
[369425453,1751571040235,-500.0,0.00017827,2]
[369425454,1751571040246,-500.0,0.00017827,2]
[369425455,1751571040257,-500.0,0.00017827,2]
[369425456,1751571040268,-500.0,0.00017827,2]
[369425457,1751571040279,-500.0,0.00017827,2]
[369425458,1751571040290,-500.0,0.00017827,2]
[369425459,1751571040302,-500.0,0.00017827,2]
[369425460,1751571040313,-151.0,0.00017827,2]
[369425461,1751571040323,-500.0,0.00017827,2]
[369425462,1751571040334,-151.0,0.00017827,2]
[369425463,1751571040345,-151.0,0.00017827,2]
[369425464,1751571040357,-151.0,0.00017827,2]
[369425465,1751571040369,-151.0,0.00017827,2]
[369425466,1751571040381,-151.0,0.00017827,2]
[369425467,1751571040391,-151.0,0.00017827,2]
[369425468,1751571040403,-151.0,0.00017827,2]
[369425469,1751571040414,-151.0,0.00017827,2]
[369425470,1751571040425,-151.0,0.00017827,2]
[369425471,1751571040436,-151.0,0.00017827,2]
[369425490,1751571040660,-1956.18909071,0.000179,2]
[369425492,1751571040671,-420.0,0.00017963,2]
[369425494,1751571040681,-692.75,0.00018081,2]
[369425496,1751571040691,-827.89,0.00018081,2]
[369425498,1751571040700,-333.83103218,0.00018081,2]
[369425500,1751571040709,-678.01,0.00018081,2]
[369425502,1751571040719,-829.86,0.00018081,2]
[369425504,1751571040729,-495.93,0.00018081,2]
[369425506,1751571040739,-460.0,0.00018081,2]
[369425509,1751571040748,-460.0,0.00018081,2]
[369425511,1751571040758,-460.0,0.00018081,2]
[369425513,1751571040767,-935.13,0.00018081,2]
[369425515,1751571040776,-460.0,0.00018081,2]
[369425517,1751571040785,-68.76062657,0.00018081,2]
[369425519,1751571040798,-391.23937343,0.00018081,2]
[369425521,1751571040808,-460.0,0.00018081,2]
[369425523,1751571040817,-460.0,0.00018081,2]
[369425525,1751571040827,-460.0,0.00018081,2]
[369425527,1751571040836,-460.0,0.00018081,2]
[369425529,1751571040845,-460.0,0.00018082,2]
[369425531,1751571040854,-859.36,0.00018082,2]
[369425533,1751571040864,-460.0,0.00018082,2]
[369425535,1751571040873,-962.96,0.00018082,2]
[369425537,1751571040882,-460.0,0.00018082,2]
[369425539,1751571040891,-366.4782688,0.00018116,2]
[369425541,1751571040901,-1956.1890907,0.00018141,2]
[369425543,1751571040910,-659.84822128,0.00018216,2]
[369425545,1751571040920,-500.0,0.0001832,2]
[369425547,1751571040930,-500.0,0.0001832,2]
[369425549,1751571040939,-500.0,0.0001832,2]
[369425551,1751571040948,-692.75,0.00018355,2]
[369425553,1751571040958,-827.89,0.00018355,2]
[369425555,1751571040967,-678.01,0.00018355,2]
[369425557,1751571040976,-829.86,0.00018355,2]
[369425559,1751571040985,-495.93,0.00018355,2]
[369425561,1751571040995,-460.0,0.00018355,2]
[369425563,1751571041004,-460.0,0.00018355,2]
[369425565,1751571041014,-460.0,0.00018355,2]
[369425567,1751571041023,-935.13,0.00018355,2]
[369425569,1751571041033,-460.0,0.00018355,2]
[369425571,1751571041043,-460.0,0.00018355,2]
[369425573,1751571041052,-460.0,0.00018355,2]
[369425575,1751571041061,-460.0,0.00018355,2]
[369425578,1751571041073,-460.0,0.00018355,2]
[369425580,1751571041083,-460.0,0.00018355,2]
[369425582,1751571041092,-460.0,0.00018356,2]
[369425584,1751571041102,-859.36,0.00018356,2]
[369425586,1751571041111,-460.0,0.00018356,2]
[369425588,1751571041121,-962.96,0.00018356,2]
[369425590,1751571041130,-460.0,0.00018356,2]
[369425592,1751571041140,-1956.1890907,0.00018383,2]
[369425594,1751571041149,-1092.56,0.000184,2]
[369425596,1751571041158,-500.0,0.0001852,2]
[369425598,1751571041168,-1956.1890907,0.00018624,2]
[369425600,1751571041177,-692.75,0.00018629,2]
[369425602,1751571041186,-154.98322276,0.00018629,2]
[369425604,1751571041200,-672.90677724,0.00018629,2]
[369425606,1751571041209,-678.01,0.00018629,2]
[369425608,1751571041218,-748.94185783,0.00018629,2]
[369425610,1751571041231,-80.91814217,0.00018629,2]
[369425612,1751571041240,-495.93,0.00018629,2]
[369425614,1751571041250,-3.66629544,0.00018629,2]
[369425616,1751571041262,-418.70153219,0.00018629,2]
[369425619,1751571041273,-37.63217237,0.00018629,2]
[369425621,1751571041283,-460.0,0.00018629,2]
[369425623,1751571041292,-460.0,0.00018629,2]
[369425625,1751571041302,-935.13,0.00018629,2]
[369425627,1751571041311,-460.0,0.00018629,2]
[369425629,1751571041321,-460.0,0.00018629,2]
[369425631,1751571041330,-460.0,0.00018629,2]
[369425633,1751571041339,-460.0,0.00018629,2]
[369425635,1751571041348,-460.0,0.00018629,2]
[369425637,1751571041357,-460.0,0.00018629,2]
[369425639,1751571041367,-402.46,0.0001863,2]
[369425641,1751571041376,-859.36,0.0001863,2]
[369425643,1751571041385,-460.0,0.0001863,2]
[369425645,1751571041394,-962.96,0.0001863,2]
[369425647,1751571041403,-460.0,0.0001863,2]
[369425649,1751571041413,-2778.95109543,0.00018813,2]
[369425651,1751571041422,-445.64,0.00018847,2]
[369425653,1751571041432,-99.80342702,0.00018866,2]
[369429905,1751571471974,184.085838,0.00013699,2]
[369429907,1751571921720,-310.72936752,0.00015508,2]
[369429910,1751572052298,-720.40715103,0.00015508,2]
[369429911,1751572054973,346.14,0.0001501,2]
[369429912,1751572108652,-270.60269322,0.00015353,2]
[369429927,1751572231707,-3698.26078823,0.00015353,2]
[369429928,1751572231717,-333.99300406,0.00015864,2]
[369429929,1751572231728,-673.0,0.00015982,2]
[369429930,1751572231738,-1008.0,0.00015983,2]
[369429931,1751572231747,-300.0,0.00015983,2]
[369429932,1751572231756,-300.0,0.00015983,2]
[369429933,1751572231766,-594.94958318,0.00015984,2]
[369429934,1751572231776,-533.84976856,0.00015984,2]
[369429935,1751572231784,-164.46339086,0.00015984,2]
[369429936,1751572231793,-500.0,0.00015984,2]
[369429937,1751572231802,-500.0,0.00015984,2]
[369429938,1751572231814,-364.11444645,0.00015984,2]
[369429939,1751572231823,-500.0,0.00015984,2]
[369429940,1751572231833,-500.0,0.00015984,2]
[369429941,1751572231842,-206.21046003,0.00015984,2]
[369429943,1751572231851,-500.0,0.00015984,2]
[369429944,1751572231860,-500.0,0.00015984,2]
[369429945,1751572231869,-335.37133112,0.00015984,2]
[369429946,1751572231878,-16779.7797881,0.00015984,2]
[369429948,1751572231888,-10000.0,0.00015985,2]
[369429950,1751572231897,-18335.96060887,0.00015985,2]
[369429951,1751572231910,-546.50562813,0.00015985,2]
[369429952,1751572231924,-6017.533763,0.00015985,2]
[369429953,1751572231934,-592.57,0.00016438,2]
[369429954,1751572231943,-460.0,0.00016438,2]
[369429955,1751572231954,-460.0,0.00016438,2]
[369429956,1751572231965,-480.05491306,0.00016438,2]
[369429957,1751572231977,-460.0,0.00016438,2]
[369429958,1751572231989,-184.05593858,0.00016438,2]
[369429959,1751572232001,-460.0,0.00016438,2]
[369429960,1751572232012,-460.0,0.00016438,2]
[369429961,1751572232022,-460.0,0.00016438,2]
[369429962,1751572232032,-460.0,0.00016438,2]
[369429963,1751572232043,-460.0,0.00016438,2]
[369429964,1751572232056,-460.0,0.00016438,2]
[369429965,1751572232067,-460.0,0.00016438,2]
[369429966,1751572232076,-460.0,0.00016438,2]
[369429967,1751572232087,-460.0,0.00016438,2]
[369429968,1751572232099,-460.0,0.00016438,2]
[369429969,1751572232111,-460.0,0.00016438,2]
[369429970,1751572232120,-344.24059989,0.00016438,2]
[369429971,1751572232131,-460.0,0.00016438,2]
[369429972,1751572232141,-460.0,0.00016438,2]
[369429973,1751572232150,-463.8458609,0.00016438,2]
[369429974,1751572232160,-460.0,0.00016438,2]
[369429975,1751572232169,-471.20004662,0.00016438,2]
[369429976,1751572232179,-460.0,0.00016438,2]
[369429977,1751572232188,-460.0,0.00016438,2]
[369429978,1751572232197,-308.47891596,0.00016438,2]
[369429979,1751572232207,-365.25001175,0.00016438,2]